Cogmind - Beta 17 @@@ ROGUE MODE // 2026.07.19 @ 23:53:08 Player: Ry645 Result: Destroyed by G-34 Mercenary with Small Laser Performance ------------- Evolutions (0) 0 Regions Visited (1) 200 Robots Destroyed (6) 30 Value Destroyed (100) 100 Prototype IDs (0) 0 Alien Tech Used (0) 0 Bonus (0) 0 TOTAL SCORE: 330 Bonus ------- None Cogmind --------- Core Integrity 0/250 Matter 300/300 Energy 100/100 System Corruption 4% Temperature Cool (12) Movement Core (1350) Ox26 Location -10/Materials Parts ------- > --- POWER (1) -------- (None) > --- PROPULSION (2) --- (None) > --- UTILITY (2) ------ Huge Storage Unit > --- WEAPON (2) ------- (None) > --- INVENTORY (25) --- Ion Engine Light Treads Aluminum Leg Aluminum Leg Signal Interpreter Transport Network Coupler Assault Rifle Assault Rifle Assault Rifle Peak State ------------ > --- POWER ------------ Ion Engine > --- PROPULSION ------- Light Treads Light Treads > --- UTILITY ---------- Small Storage Unit Huge Storage Unit > --- WEAPON ----------- Assault Rifle Light Assault Rifle > --- INVENTORY -------- Ion Engine Light Treads Aluminum Leg Aluminum Leg Transport Network Coupler Assault Rifle Assault Rifle Assault Rifle [Rating: 7] Favorites ----------- Power Light Ion Engine Engine Light Ion Engine Propulsion Light Treads Treads Light Treads Utility Small Storage Unit Storage Small Storage Unit Weapon Assault Rifle Ballistic Gun Assault Rifle Build | -11 -10 ------- Run | Yrd Mat Slots Evolved . | . . Power . | . . Propulsion . | . . Utility . | . . Weapon . | . . Parts Attached 10 | 6 4 Power 3 | 1 2 Engine 3 | 1 2 Core . | . . Reactor . | . . Propulsion 2 | 2 . Treads 2 | 2 . Leg . | . . Wheel . | . . Hover . | . . Flight . | . . Utility 2 | 1 1 Device . | . . Storage 2 | 1 1 Processor . | . . Hackware . | . . Protection . | . . Artifact . | . . Weapon 3 | 2 1 Energy Gun . | . . Energy Cannon . | . . Ballistic Gun 3 | 2 1 Ballistic Cannon . | . . Launcher . | . . Special Weapon . | . . Impact Weapon . | . . Slashing Weapon . | . . Piercing Weapon . | . . Special Melee Weapon . | . . Unidentified Prototypes . | . . Parts Lost 5 | . 5 Power 1 | . 1 Propulsion 2 | . 2 Utility . | . . Weapon 2 | . 2 Highest Loss Streak 5 | . 5 To Critical Strikes 1 | . 1 Average Backups 5 | 2 5 Power . | . 1 Propulsion 2 | 1 2 Utility . | . . Weapon 1 | 1 1 Tool/Special . | . . Unused Backups 9 | . 9 Power 1 | . 1 Propulsion 3 | . 3 Utility 2 | . 2 Weapon 3 | . 3 Tool/Special . | . . Average Slot Usage (%) 82 | . 82 Engine 13 | . 13 Treads 26 | . 26 Storage 14 | . 14 Ballistic Gun 27 | . 27 Peak Build Rating 7 | 6 7 Average Rating 5 | 4 5 On Entrance 3 | . 6 Avg Prop Armor Cover (%) . | . . Naked Turns . | . . Heaviest Build 88 | 11 88 Greatest Support 40 | 40 40 Greatest Overweight (x) 27 | 1 27 Average Overweight (x) . | . . Largest Inventory Capacity 25 | 8 25 Average Capacity 11 | 7 11 Most Carried 9 | 6 9 Average Carried 5 | 3 5 Final Capacity 25 | 8 25 Final Carried 9 | 4 9 Class Distribution -------------------- 100% | Mutant Dominant Class ---------------- Mutant | -10/Materials Resources | -11 -10 ----------- Run | Yrd Mat Matter Collected 413 | 201 212 Remotely . | . . Salvage Created 288 | . 288 Parts 19 | . 19 Haulers Intercepted 1 | . 1 Recyclers Shooed 1 | . 1 Parts Field Recycled . | . . Retrieved Matter . | . . Parts Self-Destructed . | . . Prevented . | . . Parts Restored . | . . Kills | -11 -10 ------- Run | Yrd Mat Combat Hostiles Destroyed 2 | . 2 Guns 2 | . 2 Classes Destroyed 4 | . 4 Builder 1 | . 1 Hauler 1 | . 1 Recycler 2 | . 2 Grunt 2 | . 2 Best Kill Streak 3 | . 3 Combat Bots Only 2 | . 2 Max Kills in Single Turn 1 | . 1 Gunslinging . | . . Exploded . | . . Melee . | . . Uniques/NPCs Destroyed . | . . Combat | -11 -10 -------- Run | Yrd Mat Hostile Shots Fired 117 | . 117 Missed 26 | . 26 Hits 91 | . 91 Projectile 91 | . 91 Critical Strikes 1 | . 1 Damage Taken 950 | . 950 Core 261 | . 261 Absorbed by Shields . | . . Core Remaining (%) 100 | 100 . Volleys Fired 29 | . 29 Largest 2 | . 2 Hottest 40 | . 40 Shots Fired 60 | . 60 Gun 60 | . 60 Cannon . | . . Launcher . | . . Special . | . . Kinetic 60 | . 60 Thermal . | . . Explosive . | . . Electromagnetic . | . . Robot Hit Streak 8 | . 8 Robot Miss Streak 3 | . 3 Penetration Max . | . . Secondary Targets . | . . Shots Hit Robots 39 | . 39 Core Hits 13 | . 13 Critical Kills . | . . Critical Parts Destroyed 1 | . 1 Critical Strikes 1 | . 1 Destroy 1 | . 1 Melee Attacks . | . . Impact . | . . Slashing . | . . Piercing . | . . Sneak Attacks . | . . Combat Hostiles . | . . Follow-up Attacks . | . . Damage Inflicted 433 | . 433 Guns 433 | . 433 Cannons . | . . Explosions . | . . Melee . | . . Ramming . | . . Kinetic 433 | . 433 Thermal . | . . Explosive . | . . Electromagnetic . | . . Impact . | . . Slashing . | . . Piercing . | . . Highest Corruption 4 | . 4 Average Corruption 3 | . 3 Corruption Purged . | . . Corruption Blocked . | . . Effects 7 | . 7 Message Errors 1 | . 1 Matter Fused 2 | . 2 Data Loss (minor) 1 | . 1 Data Loss (major) 1 | . 1 Misfires 2 | . 2 Overload Shots . | . . Overflow Damage . | . . Projectiles . | . . Explosions . | . . Melee . | . . Knockbacks . | . . Impact . | . . Kinetic . | . . Secondary . | . . Self-Inflicted Damage . | . . Shots . | . . Rammed . | . . Targets Rammed . | . . Kicked . | . . Crushed . | . . Highest Temperature 26 | . 26 Average Temperature 8 | . 8 Received Heat Transfer 360 | . 360 Siege Activations . | . . Martial Activations . | . . Shielding Activations . | . . Robots Disrupted . | . . Combat Hostiles . | . . Robots Corrupted . | . . Combat Hostiles . | . . Parts Fried . | . . Impact Corruptions . | . . Robots Melted . | . . Combat Hostiles . | . . Parts Melted . | . . Heat Transferred . | . . Parts Sabotaged . | . . Parts Stolen . | . . Parts Stripped . | . . Power Chain Reactions . | . . Alert | -11 -10 ------- Run | Yrd Mat Maximum Alert Level . | . . Low Security (%) 100 | 100 100 Level 1 . | . . Level 2 . | . . Level 3 . | . . Level 4 . | . . Level 5 . | . . High Security . | . . Max Security . | . . Peak Influence 45 | . 45 Initial . | . . Average 6 | . 8 Influence Increases 86 | . 86 Destroy 0b10 Robot/C 40 | . 40 Destroy 0b10 Robot/NC 20 | . 20 Destroy Leader 12 | . 12 Successful Hack 14 | . 14 Influence Decreases 86 | . 86 Time Decay 86 | . 86 Squads Dispatched 1 | . 1 Investigation 1 | . 1 Extermination . | . . Reinforcement . | . . Assault . | . . Garrison . | . . Intercept . | . . Searches Triggered . | . . Construction Impeded . | . . Haulers Reinforced . | . . Active Scanning Responses . | . . Cargo Convoy Interrupts . | . . Stealth | -11 -10 --------- Run | Yrd Mat Distress Signals 2 | . 2 Communications Jammed . | . . Distress Signals . | . . Times Spotted 13 | . 13 Peak Tracking Total 8 | . 8 Tactical Retreats . | . . Traps | -11 -10 ------- Run | Yrd Mat Traps Triggered 3 | . 3 Indirectly . | . . Trap Hack Attempts . | . . Triggered . | . . Disarmed . | . . Reprogrammed . | . . Reused . | . . Traps Extracted . | . . Installed . | . . Triggered . | . . Machines | -11 -10 ---------- Run | Yrd Mat Machines Disabled . | . . Max in Single Turn . | . . Machines Repaired . | . . Machines Dismantled . | . . Machines Sabotaged . | . . Overloaded Fab Kills . | . . Hacking | -11 -10 --------- Run | Yrd Mat Machines Accessed 2 | . 2 Terminals 2 | . 2 Fabricators . | . . Repair Stations . | . . Recycling Units . | . . Scanalyzers . | . . Garrison Access . | . . Total Hacks 6 | . 6 Successful 2 | . 2 Failed 4 | . 4 Catastrophic 2 | . 2 Database Lockouts . | . . Manual . | . . Terminals 6 | . 6 Fabricators . | . . Repair Stations . | . . Recycling Units . | . . Scanalyzers . | . . Garrison Access . | . . Terminal Hacks 2 | . 2 Transport Status 1 | . 1 Hauler Manifests 1 | . 1 Fabricator Hacks . | . . Repair Station Hacks . | . . Recycling Unit Hacks . | . . Scanalyzer . | . . Garrison Access Hacks . | . . Unauthorized Hacks . | . . Terminals . | . . Fabricators . | . . Repair Stations . | . . Recycling Units . | . . Scanalyzers . | . . Garrison Access . | . . Data Cores Recovered . | . . Used . | . . Hacking Detections 2 | . 2 Full Trace Events . | . . Feedback Events . | . . Feedback Blocked . | . . Robot Schematics Acquired . | . . Robots Built . | . . Authchips . | . . Time . | . . Total Robot Build Rating . | . . Part Schematics Acquired . | . . Parts Built . | . . Authchips . | . . Time . | . . Total Part Build Rating . | . . Part Studies Acquired . | . . Parts Repaired . | . . Time . | . . Parts Recycled . | . . Recycled Matter . | . . Retrieved Matter . | . . Retrieved Components . | . . Parts Scanalyzed . | . . Part Schematics Acquired . | . . Parts Damaged . | . . Bothacking | -11 -10 ------------ Run | Yrd Mat Used RIF Installer . | . . Robots Hacked . | . . Non-combat . | . . Combat . | . . Robot Hacks Applied . | . . Relay Couplers Released . | . . Fabnet Peak Effective % . | . . Robots Rewired . | . . Allies Hacked . | . . Hacks Repelled . | . . Allies | -11 -10 -------- Run | Yrd Mat Total Allies . | . . Largest Group . | . . Highest-Rated Group . | . . Highest-Rated Ally . | . . Total Orders . | . . Ally Attacks . | . . Total Damage . | . . Kills . | . . Allies Corrupted . | . . Allies Melted . | . . Intel | -11 -10 ------- Run | Yrd Mat Active Infowar (turns) . | . . Robot Analysis Total . | . . Derelict Logs Recovered . | . . Drone Launches . | . . Drone Recoveries . | . . Exploration | -11 -10 ------------- Run | Yrd Mat Turns Passed 482 | 72 410 Spaces Moved 208 | 49 159 Core 21 | 19 2 Treads 187 | 30 157 Legs . | . . Wheels . | . . Hover . | . . Flight . | . . Fastest Speed 50 | 50 160 Average Speed 177 | 118 195 Slowest Speed 1400 | 160 1400 Overloaded Moves . | . . Propulsion Burnouts . | . . Robots Hopped . | . . Potential Cave-ins . | . . Cave-ins Triggered . | . . Exploration Rate (%) 15 | 3 28 Regions Visited 1 Branch Regions . Pre-discovered Areas . | . . Known Exits Taken . | . . Unknown Exits Taken 1 | 1 . Scrap Searched . | . . Spaces Dug . | . . Terrain Destroyed . | . . Melee . | . . Projectile . | . . AOE . | . . Terrain Rammed . | . . Walls Destroyed . | . . Machines Disabled . | . . Actions | -11 -10 --------- Run | Yrd Mat Total 281 | 63 218 Wait 17 | . 17 Move 207 | 48 159 Hop . | . . Pick Up 14 | 9 5 Fast Attach 2 | 1 1 Attach 5 | 5 . Detach . | . . Swap 3 | . 3 Drop 4 | . 4 Fire 29 | . 29 Melee . | . . Ram . | . . Kick . | . . Crush . | . . Escape Stasis . | . . Rewire . | . . Trap . | . . Miscellaneous . | . . Route ------- -11/Scrapyard -10/Materials (discovered 1 exit: [*Mat]) History --------- Turn | Location | Event 3 | -11/Scrapyard | Discovered new exit (range 15) 73 | -11/Scrapyard | Entered Materials 302 | -10/Materials | Build established: Mutant 375 | -10/Materials | Discovered new exit (range 15) 455 | -10/Materials | Core integrity fell below 50% 480 | -10/Materials | Core integrity fell below 20% 483 | -10/Materials | Destroyed by G-34 Mercenary with Small Laser Last Messages --------------- 00411_ Destroyed Hover Unit. 00413_ K-01 Serf collects debris. 00415_ U-05 Engineer works on Purification Channel. 00433_ Triggered Alarm Trap. 00433_ An alarm sounds. 00433_ ALERT: Alarm triggered, dispatching investigation squad. 00438_ U-05 Engineer lays Concrete. 00441_ S-10 Pest destroyed. 00445_ K-01 Serf collects debris. 00454_ Critical hit (Destroy). 00454_ Ion Engine destroyed. 00456_ E#WM0F5O/H1PA&TMPNL3EH&L 00459_ K-01 Serf collects debris. 00464_ Lgt. Treads destroyed. 00467_ K-01 Serf collects debris. 00475_ System corrupted: Component data lost. 00478_ Lgt. Assault Rifle destroyed. 00479_ Assault Rifle destroyed. Map ----- +----------------------------------------------------+ | ????????# ^ T ! ##???????????????????? | | ????????# ^ =! *[ #????????????????????? | | ????????#!= =%= [[[ #????????????????????? | | ????????#%! =* #????????????????????? | | ????????#!* ^ #????????????????????? | | ????????# ^ #????????????????????? | | ????????# ^ | ! #????????????????????? | | ????????# #????????????????????? | | ????????# #????????????????????? | | ????????+ #????????????????????? | | ??????? # = #????????????????????? | | ????????# [%= #????????????????????? | | ????????# %* ####?????????????????? | | ????????# ?????????????? | | ????##### ! #############?????????????? | | ????# !! #?????????????????????????? | | ????# < ! #?????????????????????????? | | ????# #?????????????????????????? | | ????####### #?????????????????????????? | | ??????????# ##????????????????????????? | | ??????????# ^ "#????????????????????????? | | ??????????# T#????????????????????????? | | ??????????# "#????????????????????????? | | ??????????# << ##????????????????????????? | | ??????????# << ####### #?????????????? | | ??????????# << s@ ????????? | | ?????????# < tggs ????????? | | ?????????+ % << g w ????????? | | ?????????# [ << ####### ## ?????????? | | ?????????# #???????#####?????????????? | | ?????????# #?????????????????????????? | | ?????????+ #?????????????????????????? | | ?????????### #?????????????????????????? | | ???????????# #?????????????????????????? | | ???????????# #?????????????????????????? | | ???????????# #?????????????????????????? | | ??????????? #?????????????????????????? | | ??????????? ??????????????????????????? | | ????????????? ??????????????????????????? | | ???????????????? ??????????????????????????? | | ??????????????????????????????????????????????? | | ??????????????????????????????????????????????? | | ??????????????????????????????????????????????? | | ??????????????????????????????????????????????? | | ??????????????????????????????????????????????? | | ??????????????????????????????????????????????? | | ??????????????????????????????????????????????? | | ??????????????????????????????????????????????? | | ??????????????????????????????????????????????? | | ??????????????????????????????????????????????? | +----------------------------------------------------+ Best States ------------- Heat Dissipation 25 Energy Generation 10 Energy Capacity 250 Matter Stores 300 Matter Capacity 300 Sight Range 16 Terrain Scan Density 10 Evasion (%) 50 Recoil Reduction 2 Item Schematics ----------------- None Robot Schematics ------------------ None Fabricated ------------ Nothing Repaired ---------- Nothing Studied --------- None Alien Tech Used ----------------- None Achievements -------------- None Challenges ------------ None Game ------ Seed KineticFlightCarapace Manual? 0 Play Time 00:10:44 Cumulative 3.9 hours Start 2026.07.19 @ 23:30:30 End 2026.07.19 @ 23:53:08 Sessions 1 Manual Loads 0 Difficulty Rogue Special Mode None Game No. 3 Rogue 3 Adventurer 0 Explorer 0 Win Type - Total 0 Types 0/0/0/0/0/0/0/0/0/0 Lore% 2 Gallery% 4 Achievement% 6 Wizard Run 0 Options --------- Layout 2 ASCII 0 Keyboard 0 Movement Mouse Keybinds 1 Fullscreen 1 Font 24/Terminus Map View 50x44 Zoom Use 0% Tactical HUD 1 Map Filters NONE Filters NONE Steam 1 RUN: 55fd5774-3659-470c-b207-35e7106574e8